bitfinex/quotes_SOLUSD_20260118
["timestamp","ask_amount","ask_price","bid_price","bid_amount"]
[1768774011107,1.23192533,142.87,142.84,9.10971892]
[1768774012380,1.23192533,142.87,142.84,7.00045758]
[1768774012579,1.23192533,142.87,142.84,9.10971892]
[1768774014306,1.23192533,142.87,142.83,7.00133025]
[1768774014602,1.23192533,142.87,142.83,9.11059159]
[1768774020006,1.23192533,142.87,142.83,7.00133025]
[1768774020213,1.20797793,142.86,142.83,7.00133025]
[1768774020814,1.30797793,142.88,142.85,2.10926134]
[1768774021201,1.30797793,142.88,142.85,2.07926134]
[1768774021615,1.30797793,142.88,142.85,9.07954884]
[1768774024407,1.30797793,142.88,142.86,2.10926134]
[1768774025293,1.30797793,142.88,142.85,9.10954884]
[1768774028817,1.30797793,142.88,142.85,7.0002875]
[1768774029019,1.30797793,142.88,142.85,9.10954884]
[1768774035424,1.30797793,142.88,142.85,7.0002875]
[1768774046524,1.24912412,142.86,142.84,7.00075151]
[1768774046726,1.24912412,142.87,142.84,7.00072698]
[1768774055936,1.24912412,142.87,142.83,7.00133025]
[1768774056127,1.24912412,142.87,142.83,9.10901578]
[1768774057740,1.24912412,142.87,142.83,7.00133025]
[1768774057934,1.24912412,142.87,142.82,17.50394419]
[1768774057935,1.21199288,142.86,142.82,17.50394419]
[1768774058143,1.21199288,142.86,142.82,24.50576466]
[1768774059344,1.21199288,142.86,142.82,26.61345019]
[1768774060141,1.21199288,142.86,142.82,24.50576466]
[1768774060329,1.21199288,142.86,142.82,26.61345019]
[1768774065449,1.21199288,142.86,142.84,7.0008401]
[1768774067953,1.21199288,142.86,142.82,24.50576466]
[1768774068152,1.21199288,142.86,142.83,2.10768553]
[1768774069254,1.21199288,142.86,142.82,24.50576466]
[1768774069454,1.21199288,142.86,142.84,7.0008401]
[1768774075035,1.21199288,142.86,142.82,24.50576466]
[1768774075259,1.21199288,142.86,142.82,26.61345019]
[1768774075461,1.21199288,142.86,142.83,2.10768553]
[1768774075758,1.21199288,142.86,142.82,26.61345019]
[1768774077154,1.21199288,142.86,142.84,7.0008401]
[1768774077354,1.21199288,142.86,142.84,6.9708401]
[1768774078357,1.21199288,142.86,142.82,24.50576466]
[1768774078554,1.21199288,142.86,142.83,2.10768553]
[1768774081360,1.21199288,142.86,142.84,7.0008401]
[1768774087865,1.21199288,142.86,142.83,2.10768553]
[1768774089373,1.21199288,142.86,142.84,7.0008401]
[1768774092160,1.21199288,142.86,142.82,26.61345019]
[1768774092869,1.21199288,142.86,142.83,2.10768553]
[1768774093674,1.21199288,142.86,142.82,26.61345019]
[1768774099784,1.21199288,142.86,142.82,24.50576466]
[1768774100079,1.21199288,142.86,142.82,26.61345019]
[1768774102071,1.21199288,142.86,142.82,17.50394419]
[1768774102260,1.21199288,142.86,142.82,19.61162972]
[1768774102877,1.21199288,142.86,142.82,19.61224436]
[1768774103580,1.21199288,142.86,142.82,26.61406483]
[1768774104261,1.21199288,142.86,142.82,27.80512937]
[1768774105909,1.21199288,142.86,142.82,25.6968292]
[1768774106071,1.21199288,142.86,142.82,27.80512937]
[1768774107858,1.21199288,142.86,142.83,8.19193213]
[1768774108675,1.21199288,142.86,142.83,7.00086759]
[1768774117688,1.21199288,142.86,142.83,8.10458567]
[1768774119392,1.21199288,142.86,142.83,7.00086759]
[1768774122294,1.21199288,142.86,142.83,8.10458567]
[1768774122969,1.21199288,142.86,142.83,7.00086759]
[1768774123891,1.21199288,142.86,142.83,8.10458567]
[1768774127290,3.2547713,142.85,142.8,31.73211101]
[1768774127495,1.14647113,142.83,142.8,1.10371808]
[1768774127796,3.2547713,142.83,142.8,1.10371808]
[1768774128171,1.14647113,142.82,142.8,1.10371808]
[1768774128411,1.14647113,142.83,142.8,1.10371808]
[1768774128577,1.14647113,142.83,142.8,8.10638508]
[1768774128976,1.14647113,142.83,142.8,10.21468525]
[1768774131100,1.14647113,142.83,142.8,8.10638508]
[1768774131595,1.14647113,142.82,142.78,7.00334691]
[1768774131798,1.14647113,142.81,142.78,1.10371808]
[1768774132295,1.14647113,142.81,142.78,3.21201825]
[1768774132479,1.14647113,142.81,142.78,1.10371808]
[1768774137204,1.08647114,142.81,142.78,1.10371808]
[1768774138492,8.08882834,142.81,142.78,1.10371808]
[1768774144098,8.02882835,142.81,142.78,1.10371808]
[1768774146704,1.13157971,142.8,142.78,1.10371808]
[1768774161414,17.50277297,142.84,142.78,3.21201825]
[1768774161618,1.13157971,142.82,142.8,2.10830017]
[1768774162903,1.13157971,142.82,142.8,2.10897613]
[1768774163619,7.00167573,142.83,142.81,1.09653789]
[1768774164320,8.0555263,142.83,142.81,1.09653789]
[1768774168621,8.0555263,142.83,142.8,3.20551402]
[1768774170428,8.0555263,142.83,142.8,1.09653789]
[1768774174826,8.05580679,142.82,142.8,1.09653789]
[1768774176515,8.05518082,142.83,142.8,1.09653789]
[1768774177835,1.08134914,142.86,142.81,1.06931339]
[1768774178015,1.08134914,142.85,142.81,1.06931339]
[1768774179815,8.08218924,142.84,142.81,1.06931339]
[1768774185054,1.08134914,142.84,142.81,1.06931339]
[1768774185341,1.08134914,142.84,142.82,1.06931339]
[1768774185520,10.19074539,142.85,142.82,1.06931339]
[1768774186129,8.08176926,142.85,142.82,1.06931339]
[1768774188346,1.08134914,142.86,142.83,1.06931339]
[1768774191946,0.1,142.88,142.85,2.10897613]
[1768774192128,1.18134914,142.88,142.85,1.06931339]
[1768774196226,1.18134914,142.88,142.85,3.17828952]
[1768774199852,1.18134914,142.88,142.85,1.06931339]
[1768774200751,1.18134914,142.88,142.85,3.17828952]
[1768774201654,1.18134914,142.88,142.86,2.10897613]
[1768774201826,1.18134914,142.88,142.86,1.03263926]
[1768774202945,1.18134914,142.88,142.85,10.14161807]
[1768774205853,1.18134914,142.88,142.85,1.03263926]
[1768774207447,1.18134914,142.88,142.85,8.03298554]
[1768774213658,1.18134914,142.88,142.85,10.14196167]
[1768774222767,1.18134914,142.88,142.85,3.14161539]
[1768774222969,1.18134914,142.88,142.78,5.34408856]
[1768774222970,1.04103058,142.85,142.82,1.12087963]
[1768774223147,3.15000671,142.85,142.82,1.12087963]
[1768774223348,1.04103058,142.85,142.82,1.12087963]
[1768774223648,1.04103058,142.85,142.83,1.12087963]
[1768774259368,1.01443031,142.84,142.81,8.0700424]
[1768774259687,1.01443031,142.86,142.83,1.06787492]
[1768774259876,1.01443031,142.86,142.83,8.06911341]
[1768774265103,1.01443031,142.86,142.83,1.06787492]
[1768774265679,3.12290253,142.86,142.83,1.06787492]
[1768774267108,1.01443031,142.86,142.83,1.06787492]
[1768774267407,1.01443031,142.86,142.83,8.0691726]
[1768774270812,2.10847222,142.87,142.84,1.06787492]
[1768774271019,0.1,142.88,142.85,1.06787492]
[1768774271224,0.1,142.88,142.86,8.06773492]
[1768774272427,0.1,142.88,142.86,8.03773492]
[1768774276926,1.11443031,142.88,142.86,8.03773492]
[1768774277327,3.22290253,142.88,142.86,6.96986]
[1768774277730,1.11443031,142.88,142.86,6.96986]
[1768774279526,1.11443031,142.88,142.86,1.06787492]
[1768774285333,1.11443031,142.88,142.86,31.06787492]
[1768774286247,0.1,142.88,142.86,31.06787492]
[1768774286453,0.1,142.88,142.87,1.0291576]
[1768774286744,0.1,142.88,142.87,31.0291576]
[1768774287247,0.1,142.88,142.87,30.0]
[1768774287545,8.11664344,142.91,142.88,1.0291576]
[1768774287741,1.1189274,142.91,142.88,31.0291576]
[1768774288223,3.22663577,142.91,142.88,31.0291576]
[1768774289252,1.1189274,142.91,142.88,31.0291576]
[1768774289439,3.22663577,142.91,142.88,31.0291576]
[1768774290235,3.22663577,142.91,142.88,38.02800677]
[1768774295547,1.1189274,142.91,142.88,38.02800677]
[1768774295750,3.22663577,142.91,142.88,31.0291576]
[1768774297146,1.1189274,142.91,142.88,31.0291576]
[1768774297338,3.22663577,142.91,142.88,31.0291576]
[1768774299250,1.08033032,142.9,142.88,31.0291576]
[1768774306567,2.20770837,142.91,142.88,31.0291576]
[1768774307068,3.28803869,142.91,142.88,31.0291576]
[1768774314503,3.28803869,142.91,142.88,38.02801766]
[1768774324006,2.20770837,142.91,142.89,1.03217195]
[1768774324183,2.20770837,142.91,142.89,31.03217195]
[1768774324905,3.30470945,142.91,142.89,31.03217195]
[1768774325807,3.30470945,142.91,142.89,30.0]
[1768774326604,8.19328773,142.94,142.89,30.0]
[1768774326807,2.10770837,142.93,142.89,36.9982037]
[1768774327608,8.19328773,142.94,142.89,36.9982037]
[1768774328103,9.10419511,142.93,142.89,36.9982037]
[1768774335220,10.20119619,142.93,142.89,36.9982037]
[1768774336522,8.09348782,142.93,142.89,36.9982037]
[1768774336699,10.20119619,142.93,142.89,36.9982037]
[1768774337920,8.09348782,142.93,142.89,36.9982037]
[1768774338106,10.20119619,142.93,142.89,36.9982037]
[1768774338417,2.10770837,142.92,142.89,36.9982037]
[1768774338619,1.09700108,142.92,142.89,30.0]
[1768774338805,3.20470945,142.92,142.89,30.0]
[1768774343005,1.01085209,142.91,142.89,30.0]
[1768774344730,3.11856046,142.92,142.89,30.0]
[1768774345207,10.1150472,142.93,142.89,36.99825198]
[1768774345406,8.00733883,142.93,142.89,36.99825198]
[1768774345706,10.1150472,142.93,142.89,36.99825198]
[1768774346727,8.00733883,142.93,142.89,36.99825198]
[1768774346930,10.11393966,142.93,142.89,36.99825198]
[1768774353549,1.01085209,142.92,142.89,36.99825198]
[1768774354356,10.11393966,142.93,142.89,36.99825198]
[1768774357652,1.08657365,142.92,142.89,36.99825198]
[1768774367843,1.08657365,142.93,142.89,36.99825198]
[1768774368047,1.08657365,142.93,142.89,39.10485281]
[1768774368247,1.08657365,142.93,142.89,36.99825198]
[1768774369344,3.19317448,142.93,142.89,36.99825198]
[1768774372666,1.08657365,142.93,142.89,36.99825198]
[1768774372966,1.05174108,142.92,142.89,36.99825198]
[1768774375571,3.15834191,142.93,142.89,36.99825198]
[1768774376476,1.05174108,142.93,142.89,36.99825198]
[1768774376661,3.15834191,142.93,142.89,36.99825198]
[1768774377174,1.05174108,142.93,142.89,36.99825198]
[1768774380073,1.05174108,142.93,142.89,39.10485281]
[1768774380274,1e-08,142.94,142.9,15.32]
[1768774380576,1e-08,142.94,142.91,15.32]
[1768774380759,1e-08,142.94,142.91,17.42660083]
[1768774380961,1e-08,142.94,142.91,15.32]
[1768774381167,1e-08,142.94,142.91,18.1194541]
[1768774381363,1e-08,142.94,142.91,48.1194541]
[1768774382256,1e-08,142.94,142.92,6.99692135]
[1768774382477,1e-08,142.94,142.92,36.99692135]
[1768774383064,1e-08,142.94,142.92,39.10352218]
[1768774383264,1e-08,142.94,142.92,36.99692135]
[1768774384963,1e-08,142.94,142.92,39.10352218]
[1768774385564,0.1,142.97,142.93,2.10660083]
[1768774385771,0.1,142.97,142.94,15.32]
[1768774385958,2.20660083,142.98,142.94,15.32]
[1768774385959,1e-08,142.98,142.96,2.10660083]
[1768774386160,1e-08,142.98,142.94,15.32]
[1768774386372,1e-08,142.98,142.94,18.11827905]
[1768774386569,1e-08,142.99,142.94,18.11827905]
[1768774386764,1e-08,142.99,142.96,2.10660083]
[1768774386967,1e-08,142.99,142.97,15.32]
[1768774387663,1e-08,142.99,142.98,6.99398517]
[1768774388383,1e-08,143.0,142.98,6.99398517]
[1768774388879,1e-08,143.0,142.98,36.99398517]
[1768774395986,1e-08,143.0,142.98,30.0]
[1768774397092,1e-08,143.0,142.98,36.99383234]
[1768774403568,2.10660084,143.0,142.98,30.0]
[1768774403980,31.42410253,143.03,142.98,36.99387643]
[1768774404169,33.53070336,143.03,142.98,36.99387643]
[1768774404371,3.19681028,143.03,142.98,77.56666199]
[1768774404594,1.09020945,143.03,142.98,77.56666199]
[1768774404797,3.19681028,143.03,142.98,75.46006116]
[1768774404974,1.09020945,143.03,142.98,77.56666199]
[1768774405174,1.09020945,143.03,142.98,75.46006116]
[1768774405493,1.09020945,143.03,142.98,77.56666199]
[1768774405494,0.99020945,143.02,142.98,77.56666199]
[1768774406922,0.99020945,143.02,142.98,77.56368807]
[1768774408197,0.99020945,143.02,142.98,75.46006116]
[1768774408418,3.19383636,143.03,142.98,77.56368807]
[1768774409416,3.19383636,143.03,142.98,75.46006116]
[1768774409617,3.19383636,143.03,142.98,77.56368807]
[1768774409817,1.09020945,143.03,142.98,77.56368807]
[1768774410009,3.19383636,143.03,142.98,77.56368807]
[1768774410307,3.19383636,143.03,142.98,75.46006116]
[1768774410517,1.09020945,143.03,142.98,77.56368807]
[1768774410699,3.19383636,143.03,142.98,77.56368807]
[1768774411027,3.19383636,143.03,142.98,75.46006116]
[1768774411193,3.19383636,143.03,142.98,77.56368807]
[1768774411621,3.19383636,143.03,142.98,75.46006116]
[1768774411827,3.19383636,143.03,142.98,77.56368807]
[1768774413091,3.19383636,143.03,142.98,75.46006116]
[1768774413520,3.19383636,143.03,142.98,77.56368807]
[1768774413732,0.99020945,143.0,142.98,30.0]
[1768774413901,0.99020945,142.99,142.98,45.32]
[1768774414425,0.99020945,142.99,142.98,30.0]
[1768774415027,3.09383636,142.99,142.98,30.0]
[1768774415230,3.09383636,142.99,142.95,6.9952619]
[1768774415394,0.99020945,142.95,142.89,38.4021744]
[1768774415593,2.10362691,142.94,142.9,22.31756211]
[1768774415789,2.10362691,142.93,142.9,6.99756211]
[1768774416002,2.04362692,142.93,142.9,22.31756211]
[1768774416315,2.04362692,142.92,142.89,43.29380939]
[1768774416525,2.10362691,142.91,142.88,15.32]
[1768774416698,2.10362691,142.9,142.88,15.32]
[1768774417295,2.10362691,142.9,142.86,6.99974096]
[1768774417624,2.10362691,142.9,142.86,22.31974096]
[1768774417625,0.92674287,142.89,142.86,22.31974096]
[1768774417799,0.81673203,142.89,142.86,22.51696487]
[1768774418224,0.81673203,142.89,142.86,7.19696487]
[1768774418518,0.81673203,142.89,142.87,6.99936243]
[1768774420120,0.81673203,142.89,142.87,9.10298934]
[1768774420721,0.81673203,142.89,142.87,6.99936243]
[1768774423221,1.03675355,142.93,142.89,0.1981262]
[1768774423516,1.03675355,142.93,142.9,2.10362691]
[1768774424915,1.03675355,142.93,142.9,6.99789266]
[1768774425115,1.03675355,142.93,142.9,9.10151957]
[1768774426519,1.03675355,142.93,142.9,6.99789266]
[1768774427927,1.03675355,142.94,142.9,9.30899667]
[1768774428607,1.03675355,142.94,142.9,7.20536976]
[1768774428807,1.03675355,142.94,142.9,9.30899667]
[1768774429008,1.03675355,142.94,142.91,2.10362691]
[1768774429221,1.03675355,142.94,142.91,2.31291024]
[1768774429621,1.03675355,142.95,142.93,2.10362691]
[1768774429821,1.03675355,142.95,142.92,17.63469573]
[1768774430518,1.03675355,142.96,142.92,17.63469573]
[1768774430849,1.03675355,142.96,142.93,2.10362691]
[1768774432035,1.03675355,142.96,142.93,9.09961684]
[1768774435529,1.0402271,142.97,142.93,9.09961684]
[1768774435734,1.0402271,142.97,142.94,0.223006]
[1768774436318,1.0402271,142.97,142.93,7.21899593]
[1768774439439,1.0402271,142.96,142.92,7.2263275]
[1768774439620,1.0402271,142.95,142.92,7.2263275]
[1768774441141,1.0402271,142.94,142.92,6.99692135]
[1768774442638,6.99473719,142.97,142.92,6.99692135]
[1768774442843,17.48279384,143.0,142.93,3.14615791]
[1768774443033,6.99365178,142.99,142.94,2.10362691]
[1768774443220,9.09727869,142.99,142.94,2.10362691]
[1768774443541,2.10362691,142.98,142.93,3.14615791]
[1768774443745,2.10362691,142.98,142.94,6.99594235]
[1768774444049,2.10362691,142.98,142.94,8.03847335]
[1768774444448,2.10362691,142.97,142.94,8.03847335]
[1768774444839,3.14385401,142.97,142.94,8.03847335]
[1768774445150,1.0402271,142.96,142.94,6.99594235]
[1768774445833,3.14385401,142.97,142.94,6.99594235]
[1768774446035,1.0402271,142.97,142.94,6.99594235]
[1768774446237,1.0402271,142.97,142.94,8.03847335]
[1768774449934,1.0402271,142.97,142.94,6.99594235]
[1768774451561,3.14385401,142.98,142.94,1.042531]
[1768774451760,1.0402271,142.97,142.94,1.042531]
[1768774451952,1.0402271,142.97,142.93,1.042531]
[1768774454771,1.0402271,142.97,142.93,8.03857653]
[1768774457669,1.0402271,142.96,142.93,8.03857653]
[1768774459677,1.0402271,142.96,142.94,1.042531]
[1768774459878,3.14385401,142.97,142.94,1.042531]
[1768774461979,3.14385401,142.97,142.94,8.03831275]
[1768774462155,1.0402271,142.97,142.94,8.03831275]
[1768774464573,3.14385401,142.97,142.94,8.03831275]
[1768774468998,3.14554385,142.97,142.94,8.03831275]
[1768774469189,1.0402271,142.97,142.94,8.03831275]
[1768774470666,3.14554385,142.97,142.94,8.03831275]
[1768774481851,3.06595002,142.95,142.92,0.96132305]
[1768774482146,2.10531675,142.94,142.92,7.95822913]
[1768774483451,3.06595002,142.95,142.92,7.95822913]
[1768774483655,3.06595002,142.94,142.92,6.99690608]
[1768774485267,0.96063327,142.94,142.92,6.99690608]
[1768774485561,0.96063327,142.93,142.91,6.99741095]
[1768774486466,2.10531675,142.95,142.91,6.99741095]
[1768774486673,2.10531675,142.95,142.91,7.958734]
[1768774488570,0.96063327,142.94,142.91,7.958734]
[1768774489575,0.96063327,142.94,142.91,25.45226139]
[1768774490776,0.96063327,142.94,142.91,24.49093834]
[1768774490975,0.96063327,142.94,142.92,7.95777481]
[1768774491858,1.15227217,142.94,142.92,7.95777481]
[1768774497978,2.10531675,142.96,142.92,7.95777481]
[1768774499280,2.10531675,142.95,142.92,7.95777481]
[1768774499964,3.05402658,142.95,142.92,7.95777481]
[1768774501681,0.94870983,142.95,142.92,7.95777481]
[1768774501877,3.05402658,142.95,142.92,7.95777481]
[1768774502078,0.94870983,142.95,142.92,7.95777481]
[1768774502259,3.05402658,142.95,142.92,7.95777481]
[1768774503713,0.94870983,142.94,142.92,6.99645176]
[1768774503982,0.94870983,142.93,142.91,7.98859849]
[1768774504170,3.05402658,142.94,142.91,7.98859849]
[1768774504359,0.94870983,142.94,142.92,6.99678412]
[1768774505282,0.94870983,142.96,142.92,7.98817088]
[1768774505487,0.94870983,142.96,142.93,0.99138676]
[1768774506183,0.94870983,142.96,142.93,7.98746239]
[1768774509668,0.94820083,143.01,142.96,0.99138676]
[1768774509866,0.94820083,143.01,142.97,0.99138676]
[1768774509867,0.94820083,143.0,142.97,0.99138676]
[1768774510069,3.05351758,143.02,142.98,0.99138676]
[1768774510664,0.94820083,143.02,142.98,0.99138676]
[1768774510859,3.05351758,143.02,142.98,0.99138676]
[1768774511080,3.05351758,143.02,142.99,6.99349604]
[1768774511378,0.94820083,143.02,142.99,7.9848828]
[1768774511977,3.15060034,143.03,143.0,0.99138676]
[1768774512165,1.04528359,143.03,143.0,0.96138676]
[1768774513186,1.04528359,143.03,143.0,7.95438543]
[1768774515181,1.04528359,143.03,143.0,0.96138676]
[1768774515487,3.15060034,143.03,143.0,0.96138676]
[1768774516573,0.94870983,143.01,142.99,6.99334011]
[1768774516990,3.05402658,143.01,142.99,6.99334011]
[1768774518584,3.05402658,143.01,142.98,16.31138676]
[1768774518585,0.94870983,143.0,142.98,6.99382434]
[1768774518786,3.05402658,143.0,142.98,6.99382434]
[1768774521182,3.05402658,143.0,142.97,7.98580271]
[1768774521585,3.05402658,142.98,142.94,16.31138676]
[1768774522085,0.94870983,142.97,142.94,23.30725926]
[1768774524608,0.89722948,142.99,142.96,0.93489948]
[1768774526506,0.89722948,142.99,142.96,7.92951752]
[1768774527606,0.89722948,142.99,142.96,37.92951752]
[1768774530813,2.10531675,143.0,142.97,0.93489948]
[1768774530814,3.00254623,143.0,142.97,0.93489948]
[1768774531109,3.00189314,143.0,142.97,30.93489948]
[1768774531412,2.10466366,143.0,142.98,0.93489948]
[1768774531710,3.00189314,143.0,142.97,30.93489948]
[1768774534712,3.00189314,142.99,142.97,30.0]
[1768774536890,3.00189314,142.98,142.97,30.0]
[1768774537516,2.10466366,142.98,142.97,30.0]
[1768774537721,3.01627256,142.99,142.97,30.0]
[1768774538220,10.00986278,142.99,142.97,30.0]
[1768774539100,3.01627256,142.99,142.97,30.0]
[1768774541022,0.9116089,142.99,142.97,30.0]
[1768774541824,10.00978989,142.99,142.97,30.0]
[1768774541991,3.01627256,142.99,142.97,30.0]
[1768774542408,0.9116089,142.99,142.97,30.0]
[1768774544123,7.90520661,142.99,142.97,30.0]
[1768774544428,0.9116089,142.98,142.97,30.0]
[1768774553629,9.09826137,142.99,142.97,30.0]
[1768774553811,9.98189944,142.99,142.97,30.0]
[1768774557423,0.88363807,142.98,142.94,23.17376064]
[1768774557625,2.98830173,142.98,142.94,23.17376064]
[1768774557927,2.98830173,142.98,142.95,0.85796707]
[1768774558230,6.99359771,142.99,142.95,0.85796707]
[1768774558529,2.10466366,142.98,142.95,0.85796707]
[1768774561334,2.10466366,142.98,142.95,7.85339847]
[1768774562837,2.10466366,142.99,142.95,7.85339847]
[1768774563033,24.47210179,143.02,142.96,0.85796707]
[1768774563214,2.10466366,143.01,142.96,0.85796707]
[1768774563411,6.99202908,143.02,142.97,0.85796707]
[1768774563751,9.09669274,143.02,142.97,0.85796707]
[1768774563934,9.09669274,143.02,142.98,0.85796707]
[1768774565638,2.10466366,143.01,142.98,0.85796707]
[1768774572144,6.99297154,143.01,142.97,0.85796707]
[1768774572323,2.10466366,142.98,142.97,0.85796707]
[1768774572523,6.99297154,143.01,142.97,0.85796707]
[1768774572723,2.10466366,142.98,142.97,0.85796707]
[1768774573434,6.99297154,143.01,142.97,0.85796707]
[1768774573731,2.10466366,142.99,142.97,0.85796707]
[1768774582430,2.10466366,142.98,142.95,0.8755127]
[1768774582640,2.10466366,142.97,142.95,0.8755127]
[1768774583431,2.04466367,142.97,142.95,0.8755127]
[1768774585253,2.10466366,142.98,142.95,0.8755127]
[1768774585449,2.10466366,142.97,142.93,7.87178745]
[1768774585652,2.10466366,142.97,142.94,26.32]
[1768774585957,2.10466366,142.97,142.94,27.1955127]
[1768774587035,2.10466366,142.97,142.93,7.87178745]
[1768774588561,2.10466366,142.97,142.94,7.87142968]
[1768774590656,2.04466367,142.97,142.94,7.87142968]
[1768774591035,24.47624828,143.0,142.95,0.8755127]
[1768774591340,2.10466366,142.97,142.95,0.8755127]
[1768774591939,2.10466366,142.97,142.94,7.87142968]
[1768774592853,2.10535863,142.97,142.94,7.87142968]
[1768774596064,2.10535863,142.97,142.95,0.8755127]
[1768774597270,2.10535863,142.96,142.94,0.8755127]
[1768774597967,17.48432413,142.99,142.94,0.8755127]
[1768774598161,2.10535863,142.96,142.94,0.8755127]
[1768774604775,2.04535864,142.96,142.94,0.8755127]
[1768774604952,1.98535865,142.96,142.94,0.8755127]
[1768774605476,2.10535863,142.96,142.94,0.8755127]
[1768774613182,17.48432413,142.99,142.94,0.8755127]
[1768774613367,2.10535863,142.96,142.94,0.8755127]
[1768774616975,9.09992571,142.97,142.94,0.8755127]
[1768774617166,2.10535863,142.96,142.94,0.8755127]
[1768774621184,9.10043184,142.96,142.93,0.90152843]
[1768774621387,9.10043184,142.96,142.91,0.90152843]
[1768774621388,2.10535863,142.94,142.91,0.90152843]
[1768774621563,6.99507321,142.96,142.92,26.32]
[1768774621564,2.10535863,142.93,142.92,26.32]
[1768774621763,2.04535864,142.93,142.92,26.32]
[1768774622174,2.04535864,142.93,142.91,0.90152843]
[1768774623673,2.10535863,142.92,142.9,0.90152843]
[1768774624075,24.48408533,142.95,142.9,0.90152843]
[1768774624409,2.10535863,142.93,142.91,0.90152843]
[1768774627110,9.10179573,142.93,142.9,0.90152843]
[1768774629703,6.9964371,142.93,142.89,0.90152843]
[1768774629879,2.10535863,142.91,142.89,0.90152843]
[1768774630273,2.10535863,142.92,142.89,0.90152843]
[1768774631501,9.10235507,142.92,142.89,0.90152843]
[1768774633277,2.10535863,142.91,142.88,0.90152843]
[1768774633670,59.44887396,142.98,142.88,0.90152843]
[1768774633873,2.10535863,142.91,142.88,0.90152843]
[1768774634298,2.10535863,142.92,142.88,0.90152843]
[1768774636098,9.10230903,142.92,142.89,0.90152843]
[1768774638609,2.10535863,142.91,142.89,0.90152843]
[1768774642685,9.1024066,142.92,142.89,0.90152843]
[1768774644500,2.10535863,142.91,142.88,7.89146554]
[1768774645500,2.10535863,142.91,142.88,0.89265807]
[1768774645706,2.10535863,142.9,142.88,0.89265807]
[1768774645882,2.10535863,142.89,142.87,0.89265807]
[1768774647478,2.10535863,142.89,142.85,22.3202297]
[1768774647479,2.10535863,142.89,142.86,0.89265807]
[1768774647680,2.10535863,142.88,142.86,0.89265807]
[1768774648984,2.10535863,142.88,142.85,0.89265807]
[1768774652891,2.10804048,142.88,142.85,0.89265807]
[1768774653413,9.1070621,142.88,142.85,0.89265807]
[1768774654326,9.04706211,142.88,142.85,0.89265807]
[1768774654488,9.04706211,142.88,142.84,0.89265807]
[1768774655798,2.10804048,142.88,142.85,0.89265807]
[1768774657108,24.48751135,142.93,142.85,0.89265807]
[1768774657312,2.10804048,142.89,142.85,0.89265807]
[1768774658519,2.10804048,142.88,142.85,0.89265807]
[1768774658727,9.10694854,142.88,142.85,0.89265807]
[1768774661630,9.04694855,142.88,142.85,0.89265807]
[1768774662412,6.99859906,142.89,142.85,0.89265807]
[1768774662618,9.10663954,142.89,142.85,0.89265807]
[1768774663904,6.99859906,142.89,142.86,0.86360017]
[1768774664103,9.10663954,142.89,142.86,0.86360017]
[1768774668532,6.99808575,142.9,142.86,0.86360017]
[1768774668733,9.10612623,142.9,142.86,0.86360017]
[1768774669127,6.99808575,142.9,142.86,0.86360017]
[1768774669324,9.10612623,142.9,142.86,6.99976401]
[1768774669526,9.10612623,142.9,142.87,0.86360017]
[1768774673431,2.10804048,142.9,142.87,0.86360017]
[1768774674332,9.10614086,142.9,142.87,0.86360017]
[1768774678223,2.10804048,142.89,142.87,0.86360017]
[1768774679134,9.10653768,142.89,142.87,0.86360017]
[1768774680239,2.10804048,142.88,142.87,0.86360017]
[1768774680532,2.10804048,142.88,142.84,0.92968834]
[1768774680719,2.10804048,142.87,142.84,0.92968834]
[1768774681613,2.10804048,142.87,142.85,0.92968834]
[1768774683136,2.04804049,142.87,142.85,0.92968834]
[1768774683641,1.9880405,142.87,142.85,0.92968834]
[1768774685350,38.63602572,142.93,142.84,0.92968834]
[1768774685351,9.10790048,142.86,142.84,0.92968834]
[1768774686545,9.10790048,142.86,142.83,0.12968834]
[1768774688651,9.10790048,142.86,142.83,1.05937668]
[1768774690444,6.93986001,142.86,142.83,1.05937668]
[1768774690653,9.04790049,142.86,142.83,1.05937668]
[1768774694768,10.02613485,142.88,142.84,0.92968834]
[1768774697746,10.02613485,142.88,142.85,0.92968834]
[1768774699766,7.91809437,142.88,142.85,0.92968834]
[1768774699964,10.02613485,142.88,142.85,0.92968834]
[1768774701962,6.99920258,142.88,142.85,0.92968834]
[1768774703064,18.41383171,142.9,142.85,0.92968834]
[1768774703065,6.99839037,142.89,142.85,0.92968834]
[1768774703456,7.95652871,142.89,142.85,0.92968834]
[1768774705567,10.06456919,142.89,142.85,0.92968834]
[1768774706669,7.96107843,142.88,142.84,9.03856188]
[1768774708051,7.96107843,142.88,142.84,6.9305214]
[1768774708265,7.96107843,142.88,142.84,9.03856188]
[1768774708651,7.96107843,142.88,142.85,0.94655723]
[1768774724157,6.99902446,142.88,142.85,0.94655723]
[1768774724680,7.92206695,142.88,142.85,0.94655723]
[1768774727678,7.92153708,142.89,142.86,0.97205015]
[1768774727885,6.99849459,142.89,142.86,0.97205015]
[1768774729189,7.92153708,142.89,142.86,0.97205015]
[1768774733590,10.02942237,142.89,142.86,0.97205015]
[1768774738486,0.95256146,142.9,142.86,0.97205015]